[Event "USA Championship Women 2022"]
[Site "Saint Louis"]
[Date "2022.10.12"]
[Round "7.7"]
[White "Cervantes Landeiro, Thalia"]
[Black "Zatonskih, Anna"]
[Result "1/2-1/2"]
[ECO "D36"]
[WhiteElo "2272"]
[BlackElo "2368"]
[Annotator "TA"]
[PlyCount "104"]
[EventDate "2022.09.05"]
[EventType "tourn"]
[EventCountry "USA"]
[SourceTitle "playchess.com"]
[Source "ChessBase"]
[SourceQuality "1"]
[TimeControl "40/5400+30:1800+30"]

{[%evp 34,104,6,6,14,9,9,7,19,2,17,0,10,0,0,0,0,0,0,0,0,0,0,0,0,0,0,0,0,0,0,0,0,0,0,0,0,0,0,0,0,0,0,0,0,0,0,0,0,0,0,0,0,0,0,0,0,0,0,0,0,0,0,0,0,0,0,0,0,0,0,0,0]} 1. d4 {[%emt 0:00:03]} d5 {[%emt 0:00:19]} 2. c4 {[%emt 0:00:08]} e6 {[%emt 0:00:04]} 3. Nc3 {[%emt 0:00:07]} Nf6 {[%emt 0:00:11]} 4. cxd5 {[%emt 0:00:09]} exd5 {[%emt 0:00:07]} 5. Bg5 {[%emt 0:00:09]} c6 {[%emt 0:03:27]} 6. e3 {[%emt 0:00:21]} Be7 {[%emt 0:01:09]} 7. Bd3 {[%emt 0:00:31]} Nbd7 {[%emt 0:02:47][%cal Bb8d7,Bd7f8,Bf8e6,Be6g7,Bg7f5][%mdl 32]} 8. Qc2 {[%emt 0:03:42]} Nf8 {[%emt 0:01:57]} 9. Nf3 {[%emt 0:01:58]} Ne6 {[%emt 0:00:19]} 10. Bh4 {[%emt 0:00:49]} g6 {[%emt 0:00:42]} 11. O-O {[%emt 0:01:55]} O-O {[%emt 0:00:06]} 12. Rab1 {[%emt 0:01:00]} a5 {[%emt 0:01:14]} 13. a3 {[%emt 0:01:24][%cal Ba2a3,Ba3b4][%mdl 32]} Ng7 {[%emt 0:00:23]} 14. b4 {[%emt 0:07:29]} axb4 {[%emt 0:00:48]} 15. axb4 {[%emt 0:00:12]} Bf5 {[%emt 0:00:31]} 16. Bxf5 {[%emt 0:12:04]} Nxf5 {[%emt 0:01:00]} 17. Bxf6 {[%emt 0:00:16]} Bxf6 {[%emt 0:00:15]} 18. b5 {[%emt 0:01:13] The position is equal.} Nd6 {[%emt 0:05:28] D36: Queen's Gambit Declined: Exchange Variation: Main line (5 Bg5 c6 6 Qc2).} 19. bxc6 {[%emt 0:05:44]} bxc6 {[%emt 0:00:08]} 20. Nd2 {[%emt 0:01:12]} Be7 {[%emt 0:19:22] [#]} 21. Ne2 $146 {[%emt 0:07:21][%cal Bc3e2,Be2f4,Bf4d3,Bd3c5][%mdl 32]} ({Predecessor:} 21. Na4 Ra6 22. Nc5 Ra7 23. Nd3 Qa8 24. Nb4 Rc8 25. Rfd1 Bf8 26. g3 {½-½ (51) Guillo Longares,C (2089)-Ortega Serra,M (2288) Sitges 2020}) 21... Ra6 {[%emt 0:12:13]} 22. Nf4 {[%emt 0:04:32]} Qa8 {[%emt 0:02:54]} 23. Rb2 {[%emt 0:06:43]} Rd8 {[%emt 0:10:20]} 24. Nd3 {[%emt 0:03:43]} Nb5 {[%emt 0:02:15]} 25. h3 {[%emt 0:03:57]} Bd6 {[%emt 0:04:55]} 26. Nc5 {[%emt 0:06:09]} Ra3 {[%emt 0:02:44]} 27. Ndb3 {[%emt 0:03:18]} Ra7 {[%emt 0:01:56]} 28. Rc1 {[%emt 0:05:03]} Na3 {[%emt 0:04:23]} 29. Qe2 {[%emt 0:00:22]} Nc4 {[%emt 0:03:28]} 30. Rbc2 {[%emt 0:00:30]} Rb8 {[%emt 0:05:10]} 31. Nd2 {[%emt 0:06:58]} Bxc5 {[%emt 0:03:53]} 32. Nxc4 {[%emt 0:01:23]} Bxd4 {[%emt 0:01:06]} 33. exd4 {[%emt 0:01:04]} dxc4 {[%emt 0:00:06]} 34. Rxc4 {[%emt 0:01:36]} Ra6 {[%emt 0:01:58]} 35. Qe4 {[%emt 0:04:44]} Rd8 {[%emt 0:01:41]} 36. Kh2 {[%emt 0:04:32]} Qb8+ {[%emt 0:00:34]} 37. g3 {[%emt 0:01:14]} Qd6 {[%emt 0:00:12]} 38. R1c2 {[%emt 0:00:48]} Qd5 {[%emt 0:04:17]} 39. Qxd5 {[%emt 0:02:08]} Rxd5 $11 {[%emt 0:00:08][%mdl 4096] Endgame KRR-KRR} 40. Kg2 {[%emt 0:00:57]} Ra7 {[%emt 0:04:10]} 41. Rb4 {[%emt 0:32:55]} Rad7 {[%emt 0:31:17]} 42. Rcc4 {[%emt 0:00:31]} R7d6 {[%emt 0:00:20]} 43. Rb6 {[%emt 0:00:00]} Rxd4 {[%emt 0:00:00]} 44. Rxd4 {[%emt 0:00:00]} Rxd4 {[%emt 0:00:00]} 45. Rxc6 {[%emt 0:00:00] KR-KR} Rd3 {[%emt 0:00:00]} 46. h4 {[%emt 0:00:00]} h5 {[%emt 0:00:00]} 47. Rc7 {[%emt 0:00:00]} Kg7 {[%emt 0:00:00]} 48. Rc6 {[%emt 0:00:00]} Ra3 {[%emt 0:00:00]} 49. Rd6 {[%emt 0:00:00]} Rb3 {[%emt 0:00:00]} 50. Rc6 {[%emt 0:00:00]} Ra3 {[%emt 0:00:00]} 51. Rd6 {[%emt 0:00:00]} Rb3 {[%emt 0:00:00]} 52. Rc6 {[%emt 0:00:00]} Ra3 {[%emt 0:00:00] An even fight not without its subleties.  Weighted Error Value: White=0.02 (flawless) /Black=0.01 (flawless)} 1/2-1/2

[Event "USA Championship Women 2022"]
[Site "Saint Louis"]
[Date "2022.10.13"]
[Round "8.1"]
[White "Abrahamyan, Tatev"]
[Black "Cervantes Landeiro, Thalia"]
[Result "0-1"]
[ECO "B90"]
[WhiteElo "2308"]
[BlackElo "2272"]
[Annotator "TA"]
[PlyCount "94"]
[EventDate "2022.09.05"]
[EventType "tourn"]
[EventCountry "USA"]
[SourceTitle "playchess.com"]
[Source "ChessBase"]
[SourceQuality "1"]
[TimeControl "40/5400+30:1800+30"]

{[%evp 15,94,0,29,20,29,24,33,42,21,20,24,0,12,8,8,0,5,0,76,36,38,31,68,56,127,123,112,125,129,30,34,33,36,30,54,47,71,49,71,70,28,47,114,6,72,70,74,93,104,104,120,130,102,79,78,84,76,31,21,27,16,-360,-364,-443,-404,-368,-392,-878,-267,-993,-987,-1177,-952,-960,-784,-928,-696,-670,-683,-578,-557]} 1. e4 {[%emt 0:00:03]} c5 {[%emt 0:00:06]} 2. Nf3 {[%emt 0:00:03]} d6 {[%emt 0:00:06]} 3. d4 {[%emt 0:00:03]} cxd4 {[%emt 0:00:07]} 4. Nxd4 {[%emt 0:00:02]} Nf6 {[%emt 0:00:10]} 5. Nc3 {[%emt 0:00:03]} a6 {[%emt 0:00:07]} 6. f3 {[%emt 0:00:13]} e5 {[%emt 0:00:12]} 7. Nb3 {[%emt 0:00:03]} Be6 {[%emt 0:00:10]} 8. Be3 {[%emt 0:00:15]} h5 {[%emt 0:00:18]} 9. Nd5 {[%emt 0:00:51] B90: Sicilian Najdorf: Unusual White 6th moves, 6 Be3 Ng4 and 6 Be3 e5.} Bxd5 {[%emt 0:00:49]} 10. exd5 {[%emt 0:00:07]} Nbd7 {[%emt 0:00:17]} 11. Qd2 {[%emt 0:00:07] White is slightly better.} g6 {[%emt 0:00:50]} 12. O-O-O {[%emt 0:00:26]} Nb6 {[%emt 0:00:30]} 13. Qa5 {[%emt 0:00:54]} Bh6 {[%emt 0:01:55]} 14. Bxh6 {[%emt 0:01:02]} Rxh6 {[%emt 0:00:11]} 15. Qd2 {[%emt 0:02:06]} Rh8 {[%emt 0:00:57]} 16. f4 {[%emt 0:01:03] [#]} e4 $146 {[%emt 0:09:21]} (16... Nfxd5 17. g3 $14) (16... exf4 $11 17. Qxf4 Kf8) ({Predecessor:} 16... exf4 17. Qxf4 Kf8 18. Bd3 Nbxd5 19. Qg5 Qb6 20. Bxg6 Qe3+ 21. Qxe3 Nxe3 22. Rxd6 {½-½ (57) Ponomariov,R (2699)-Wang,H (2698) Danzhou 2017}) 17. Kb1 {[%emt 0:13:16]} Nbxd5 {[%emt 0:09:41]} 18. c4 {[%emt 0:04:38]} Nc7 {[%emt 0:01:50]} ({Less strong is} 18... e3 19. Qd4 Nc7 20. Bd3 $16 (20. Qxd6 Qxd6 21. Rxd6 Rd8 $11) (20. Qxe3+ Qe7 $16)) 19. Qb4 {[%emt 0:19:33]} Rb8 {[%emt 0:08:09]} ({Better is} 19... Qe7 $14) 20. Rxd6 $16 {[%emt 0:12:39]} Qe7 {[%emt 0:00:36]} 21. f5 {[%emt 0:10:05]} Kf8 {[%emt 0:16:13]} 22. c5 {[%emt 0:06:27]} (22. fxg6 $16 Nce8 23. Rb6) 22... Kg7 $11 {[%emt 0:08:39]} 23. fxg6 {[%emt 0:06:14]} fxg6 {[%emt 0:04:09]} 24. Bc4 {[%emt 0:00:32] [#] Strongly threatening Rf1.} b5 {[%emt 0:08:41]} 25. Be2 {[%emt 0:05:12]} ({Don't blunder} 25. cxb6 $2 Nce8 26. Rhd1 Rd8 $19) 25... Ncd5 {[%emt 0:04:26]} 26. Qd2 $36 {[%emt 0:05:00][%mdl 2048] Black must now prevent Qg5. White is more active.} Rhd8 {[%emt 0:05:25]} 27. Rxa6 {[%emt 0:02:37]} e3 {[%emt 0:05:56]} 28. Qd4 {[%emt 0:00:32]} b4 {[%emt 0:01:28]} (28... Nb6 $14 29. Qh4 Nc4) 29. Qh4 {[%emt 0:04:23]} (29. Kc2 $16) 29... Qe4+ {[%emt 0:04:48]} (29... Qe5 $1 $11) 30. Qxe4 $16 {[%emt 0:00:04]} Nxe4 {[%emt 0:00:04] Pair of Knights!} 31. Bf3 {[%emt 0:02:57]} Nf2 {[%emt 0:03:42]} 32. Rf1 {[%emt 0:01:56]} Nf4 {[%emt 0:01:22] Inhibits Re6.} 33. c6 {[%emt 0:01:40]} Re8 {[%emt 0:00:55]} 34. Ra7+ {[%emt 0:00:41]} Kh6 {[%emt 0:00:34]} 35. Nc1 {[%emt 0:00:35]} Rbc8 {[%emt 0:01:53]} 36. Rf7 {[%emt 0:00:41]} Ne6 {[%emt 0:01:26]} 37. Re1 {[%emt 0:00:57]} Ng5 {[%emt 0:00:30]} 38. Rf6 {[%emt 0:00:42][%mdl 8192] This costs White the game.} (38. Rf4 $1 $11 {and White has nothing to worry.}) 38... Nge4 {[%emt 0:01:18]} 39. Rf4 {[%emt 0:00:30]} Rxc6 {[%emt 0:01:06]} 40. Bxe4 {[%emt 0:00:42]} Nxe4 {[%emt 0:00:32]} 41. Ne2 $2 {[%emt 0:06:01]} (41. Ka1 Rc2 42. Rff1) 41... Nd2+ $19 {[%emt 0:07:31]} 42. Ka1 {[%emt 0:00:05]} Ra8 {[%emt 0:04:17][%cal Oa8a2] Black is clearly winning.} 43. Nc1 {[%emt 0:05:26]} b3 {[%emt 0:06:31][%cal Oc6c1]} 44. a3 {[%emt 0:01:23]} Rac8 {[%emt 0:03:49]} 45. Nd3 {[%emt 0:02:26]} e2 {[%emt 0:03:08]} 46. Rf2 {[%emt 0:03:05]} Rc2 {[%emt 0:02:45] ( -> ...Ra8)} 47. Rfxe2 {[%emt 0:02:28] [#]} Ra8 $1 {[%emt 0:00:25] Weighted Error Value: White=0.50/Black=0.27 (precise)} 0-1

[Event "USA Championship Women 2022"]
[Site "Saint Louis"]
[Date "2022.10.13"]
[Round "8.2"]
[White "Zatonskih, Anna"]
[Black "Yan, Ruiyang"]
[Result "1/2-1/2"]
[ECO "A18"]
[WhiteElo "2368"]
[BlackElo "2220"]
[Annotator "TA"]
[PlyCount "85"]
[EventDate "2022.09.05"]
[EventType "tourn"]
[EventCountry "USA"]
[SourceTitle "playchess.com"]
[Source "ChessBase"]
[SourceQuality "1"]
[TimeControl "40/5400+30:1800+30"]

{[%evp 11,85,48,33,25,25,25,25,25,26,30,38,28,31,33,27,35,28,31,36,39,25,35,37,33,52,48,75,72,70,56,59,59,61,49,52,47,55,43,66,29,27,35,32,17,19,19,69,72,137,138,142,47,34,34,34,34,34,34,34,0,0,0,0,0,0,0,0,0,0,0,0,0,0,0,0,0]} 1. c4 {[%emt 0:00:04]} Nf6 {[%emt 0:00:39]} 2. Nc3 {[%emt 0:00:13]} e6 {[%emt 0:00:05][%cal Be7e6,Be6d5][%mdl 32]} 3. e4 {[%emt 0:00:12][%cal Be2e4,Be4e5][%mdl 32]} d5 {[%emt 0:00:10]} 4. cxd5 {[%emt 0:00:47]} exd5 {[%emt 0:00:06]} 5. e5 {[%emt 0:01:26]} d4 {[%emt 0:00:25]} 6. exf6 {[%emt 0:01:34]} dxc3 {[%emt 0:00:52]} 7. Bb5+ {[%emt 0:00:08] A18: English Opening: Flohr-Mikenas System (1 c4 Nf6 2 Nc3 e6 3 e4).} Nc6 {[%emt 0:00:08]} 8. Qe2+ {[%emt 0:01:39]} Be6 {[%emt 0:00:06]} 9. dxc3 {[%emt 0:00:53] White has an edge.} Qxf6 {[%emt 0:00:25]} 10. Nf3 {[%emt 0:00:24][%cal Bg1f3,Bf3g5,Bg5e6][%mdl 32]} Bd6 {[%emt 0:00:16]} 11. Ng5 {[%emt 0:05:24]} O-O {[%emt 0:13:41]} 12. Nxe6 {[%emt 0:01:56]} Rfe8 {[%emt 0:00:29][%mdl 64] [#] Pin} 13. Bc4 $1 {[%emt 0:03:21][%cal Bb5c4,Bc4d3,Bd3f5,Bf5g4,Bg4f3][%mdl 32]} Na5 $1 {[%emt 0:00:19] [#]} 14. Bg5 $146 {[%emt 0:03:09]} ({Predecessor:} 14. Be3 Nxc4 15. Nxg7 Rxe3 16. fxe3 Qh4+ 17. g3 Bxg3+ 18. Kf1 Qh3+ 19. Kg1 Bd6 20. Qxc4 Qxe3+ {1-0 (60) Muradli,M (2523)-Talibov,S (2307) Chess.com INT 2022}) 14... Qg6 {[%emt 0:00:30][%mdl 64] Pin} 15. Bd3 {[%emt 0:00:53]} Qxe6 {[%emt 0:00:23]} 16. Qxe6 {[%emt 0:00:03]} Rxe6+ {[%emt 0:00:09]} 17. Kd2 {[%emt 0:00:43]} h6 {[%emt 0:10:56]} 18. Be3 {[%emt 0:01:53]} c5 {[%emt 0:02:21]} 19. Kc2 {[%emt 0:08:16]} c4 {[%emt 0:17:24]} 20. Bf5 {[%emt 0:12:51] A strong pair of Bishops.} Re5 {[%emt 0:03:01]} 21. Bg4 {[%emt 0:00:08]} Bc5 {[%emt 0:09:14]} 22. Bxc5 {[%emt 0:03:14]} Rxc5 {[%emt 0:00:12]} 23. Rad1 {[%emt 0:00:56]} Nc6 {[%emt 0:03:10]} 24. f4 {[%emt 0:04:59]} g5 {[%emt 0:16:22]} 25. fxg5 {[%emt 0:13:45]} Rxg5 {[%emt 0:00:42]} 26. Bf3 {[%emt 0:00:18]} Ne5 $1 {[%emt 0:01:28] Against Rd7} 27. Be4 {[%emt 0:07:18]} Re8 {[%emt 0:09:02]} 28. Rhe1 {[%emt 0:08:30]} Kf8 {[%emt 0:00:27]} (28... b5 $11) 29. h4 $14 {[%emt 0:02:15]} ({Reject} 29. Bxb7 Rb8 30. Be4 Nd3 31. Bxd3 cxd3+ 32. Kxd3 Rxb2 $11) 29... Rg3 {[%emt 0:04:28]} (29... Rh5 $142) 30. Bxb7 $16 {[%emt 0:00:13]} f6 {[%emt 0:01:02]} 31. b3 {[%emt 0:02:50]} (31. Rd4 $16) 31... Rb8 $14 {[%emt 0:00:27]} 32. Bd5 {[%emt 0:03:25]} cxb3+ {[%emt 0:03:00]} 33. axb3 {[%emt 0:00:37]} Rc8 $1 {[%emt 0:00:06]} 34. c4 {[%emt 0:03:20]} Rb8 $1 {[%emt 0:00:05]} 35. c5 {[%emt 0:01:51]} Rc8 $1 {[%emt 0:00:22] The position is equal.} 36. Kb1 {[%emt 0:04:20][%cal Oc5c6]} Rxc5 {[%emt 0:00:09] [#] Hoping for ...Nd3.} 37. Re2 {[%emt 0:01:49]} Rgc3 {[%emt 0:02:21]} 38. Red2 {[%emt 0:02:10]} a5 {[%emt 0:02:07]} 39. Kb2 {[%emt 0:00:25]} Ke7 {[%emt 0:00:39]} 40. Re1 {[%emt 0:01:28]} Kf8 {[%emt 0:00:58]} 41. Red1 {[%emt 0:30:04]} ({Much weaker is} 41. Bc4 R3xc4 42. bxc4 Nxc4+ 43. Kc3 Nxd2+ 44. Kxd2 h5 $17) 41... Ke7 {[%emt 0:30:08]} 42. Re1 {[%emt 0:00:00]} Kf8 {[%emt 0:00:00] Strongly threatening ...Rd3.} 43. Red1 {[%emt 0:06:22] Weighted Error Value: White=0.06 (flawless) /Black=0.04 (flawless)} ({Much worse is} 43. Bc4 R3xc4 44. bxc4 Nxc4+ 45. Kc3 Nxd2+ 46. Kxd2 Kf7 $17) 1/2-1/2

[Event "USA Championship Women 2022"]
[Site "Saint Louis"]
[Date "2022.10.13"]
[Round "8.3"]
[White "Yu, Jennifer"]
[Black "Wu, Rochelle"]
[Result "1-0"]
[ECO "D15"]
[WhiteElo "2297"]
[BlackElo "2317"]
[Annotator "TA"]
[PlyCount "73"]
[EventDate "2022.09.05"]
[EventType "tourn"]
[EventCountry "USA"]
[SourceTitle "playchess.com"]
[Source "ChessBase"]
[SourceQuality "1"]
[TimeControl "40/5400+30:1800+30"]

{[%evp 12,73,20,16,13,12,23,0,0,-16,-12,-36,-44,-34,-50,-64,-51,-69,0,0,60,35,31,14,25,16,11,0,22,18,16,0,0,0,60,13,32,14,15,22,233,208,281,267,277,303,287,239,255,215,541,548,533,525,1495,1506,1499,1491,1341,1340,1459,1440,1235,1022]} 1. d4 {[%emt 0:00:09]} d5 {[%emt 0:00:09]} 2. c4 {[%emt 0:00:15]} c6 {[%emt 0:00:07]} 3. Nf3 {[%emt 0:00:17]} Nf6 {[%emt 0:00:13]} 4. Nc3 {[%emt 0:00:10]} a6 {[%emt 0:01:06]} 5. c5 {[%emt 0:02:58]} Nbd7 {[%emt 0:00:39]} 6. Bf4 {[%emt 0:04:52]} Nh5 {[%emt 0:00:48]} 7. Bd2 {[%emt 0:00:05]} Nhf6 {[%emt 0:00:31][%cal Oe7e5] Against e4. D15: Slav Defence: 4 Nc3 a6 and gambit lines after 4 Nc3 dxc4.} 8. b4 {[%emt 0:04:11]} g6 {[%emt 0:01:15] [#]} (8... Ne4 {is interesting.} 9. Rc1 g6 10. Bf4 Bg7) 9. Qc2 $146 {[%emt 0:12:12]} ({Predecessor:} 9. Qc1 Bg7 10. Bh6 Bxh6 11. Qxh6 a5 12. b5 cxb5 13. e4 dxe4 14. Ng5 a4 15. Bxb5 Qa5 16. Rc1 Qb4 17. O-O Qxd4 18. Qg7 Rf8 19. Nxh7 {1-0 (19) Granda Zuniga,J (2601)-Leitao,R (2598) Villa Martelli 2005}) 9... Bg7 {[%emt 0:01:32] The position is equal.} 10. h3 {[%emt 0:00:52]} O-O {[%emt 0:03:10]} 11. Bf4 {[%emt 0:01:36]} a5 {[%emt 0:07:05]} 12. b5 {[%emt 0:06:51]} Ne4 {[%emt 0:17:33][%cal Od7c5]} 13. bxc6 {[%emt 0:02:17]} bxc6 {[%emt 0:00:44][%cal Oa5a4]} 14. e3 {[%emt 0:20:48] [#]} Nxc3 {[%emt 0:16:34]} (14... Ndxc5 $1 $15 15. Nxe4 (15. Rc1 Ne6) 15... Nxe4) 15. Qxc3 $11 {[%emt 0:00:25]} f6 {[%emt 0:01:10]} (15... Re8 $11) 16. Rd1 {[%emt 0:12:03]} e5 {[%emt 0:10:38]} 17. Bg3 {[%emt 0:02:39]} e4 {[%emt 0:08:27]} 18. Nd2 {[%emt 0:00:32]} f5 {[%emt 0:00:12]} 19. h4 {[%emt 0:01:05]} h6 {[%emt 0:01:40]} 20. Be2 {[%emt 0:05:38]} Rf7 {[%emt 0:08:24]} 21. Rb1 {[%emt 0:02:30]} Nf8 {[%emt 0:03:23]} 22. Rb6 {[%emt 0:01:19]} Ne6 {[%emt 0:06:08]} (22... Qe8 $11) 23. Rxc6 {[%emt 0:05:40]} (23. h5 $14 {feels stronger.}) 23... f4 {[%emt 0:00:05]} 24. Rd6 {[%emt 0:01:35]} (24. Bxf4 $5 Bxd4 25. exd4 Nxf4 26. Rd6 $11) 24... Qe7 {[%emt 0:00:36]} 25. Bxf4 {[%emt 0:01:00] [#] aiming for Bg3.} (25. Rxe6 {looks sharper.} Bxe6 26. Bxf4 Rxf4 27. exf4 Qf6 28. O-O) 25... Nxf4 {[%emt 0:01:37] Loses the game.} (25... Bxd4 $1 $11 {and Black is okay.} 26. exd4 Nxf4) 26. exf4 $18 {[%emt 0:00:07]} Rxf4 {[%emt 0:00:45]} 27. Rxd5 {[%emt 0:05:12]} ({Resist} 27. Rxg6 $6 Be6 28. O-O Raf8 $16) 27... Rxh4 {[%emt 0:01:33]} 28. Rxh4 {[%emt 0:02:09]} Qxh4 {[%emt 0:00:06]} 29. Rd6 {[%emt 0:00:30][%cal Bd5d6,Bd6d7,Bd7d8][%mdl 32]} Kh7 {[%emt 0:03:13]} 30. Qg3 $40 {[%emt 0:02:22][%mdl 128] Black is in trouble. Really sharp! Active counter play!} Qh1+ {[%emt 0:00:43]} (30... Qxg3 31. fxg3 Rb8 32. Nxe4 Bf5) 31. Nf1 {[%emt 0:00:51] White is clearly winning.} Bf5 {[%emt 0:00:58]} 32. Bg4 {[%emt 0:00:06]} Rb8 {[%emt 0:01:36] ...Rb1+ is the strong threat.} 33. Bxf5 {[%emt 0:00:12]} gxf5 {[%emt 0:00:05]} 34. Rd7 {[%emt 0:00:40][%csl Gd7][%cal Rg3g7]} Rg8 {[%emt 0:00:13]} 35. c6 {[%emt 0:00:52][%cal Bc5c6,Bc6c7][%mdl 32] White wants to mate with c7.} Qh5 {[%emt 0:00:17]} 36. c7 {[%emt 0:00:43]} Qe8 {[%emt 0:00:04]} 37. Rd8 {[%emt 0:00:46] Weighted Error Value: White=0.11 (very precise) /Black=0.38} 1-0

[Event "USA Championship Women 2022"]
[Site "Saint Louis"]
[Date "2022.10.13"]
[Round "8.4"]
[White "Foisor, Sabina-Francesca"]
[Black "Tokhirjonova, Gulrukhbegim"]
[Result "1-0"]
[ECO "D90"]
[WhiteElo "2203"]
[BlackElo "2336"]
[Annotator "TA"]
[PlyCount "111"]
[EventDate "2022.09.05"]
[EventType "tourn"]
[EventCountry "USA"]
[SourceTitle "playchess.com"]
[Source "ChessBase"]
[SourceQuality "1"]
[TimeControl "40/5400+30:1800+30"]

{[%evp 9,111,7,35,25,17,26,30,20,47,29,29,21,32,27,33,29,37,30,51,16,42,20,28,17,36,17,19,0,42,48,42,48,47,0,0,-104,-12,-22,0,0,0,0,155,162,460,195,168,176,178,164,133,60,72,70,135,127,138,134,116,90,90,30,53,0,0,0,0,0,257,264,265,265,278,254,394,389,411,410,378,369,416,402,538,531,526,499,492,414,6025,5770,3958,4372,5039,1130,1054,1047,29945,29953,9890,9836,5114,5072,1268,888]} 1. d4 {[%emt 0:00:22]} Nf6 {[%emt 0:00:47]} 2. Nf3 {[%emt 0:00:14]} g6 {[%emt 0:00:24]} 3. c4 {[%emt 0:01:22]} Bg7 {[%emt 0:00:16]} 4. Nc3 {[%emt 0:02:04]} d5 {[%emt 0:00:21]} 5. h4 {[%emt 0:02:31]} h5 {[%emt 0:08:08]} 6. Bf4 {[%emt 0:04:58] D90: Grünfeld: 4 Nf3 Bg7 sidelines.} O-O {[%emt 0:04:37]} 7. e3 {[%emt 0:00:35]} c6 {[%emt 0:00:15] [#]} 8. Be2 $146 {[%emt 0:05:41] White has an edge.} ({Predecessor:} 8. Ne5 Nbd7 9. Be2 Nxe5 10. Bxe5 Nd7 11. Bxg7 Kxg7 12. cxd5 cxd5 13. Nxd5 b6 14. O-O {1-0 (55) Koellner,R (2376)-Antonio,J (2277) Chess.com INT 2020}) 8... a5 {[%emt 0:04:21][%cal Ba7a5,Ba5a4][%mdl 32]} 9. Rc1 {[%emt 0:05:48]} dxc4 {[%emt 0:10:26]} 10. Bxc4 {[%emt 0:04:56]} Bg4 {[%emt 0:05:10]} 11. Be2 {[%emt 0:07:36]} Nbd7 {[%emt 0:04:03]} 12. O-O {[%emt 0:03:00]} Nb6 {[%emt 0:01:57]} 13. e4 {[%emt 0:06:49]} a4 {[%emt 0:03:29]} 14. b3 {[%emt 0:14:42][%cal Rb3a4]} Ne8 {[%emt 0:03:58]} 15. Ne5 {[%emt 0:07:59]} Bxe2 {[%emt 0:02:48]} 16. Nxe2 {[%emt 0:00:11]} Nd6 {[%emt 0:00:39]} 17. Qc2 {[%emt 0:03:49]} axb3 {[%emt 0:02:14]} 18. Qxb3 {[%emt 0:05:59]} Kh7 {[%emt 0:02:23]} (18... Nxe4 19. Nxg6 Re8 20. Be5 $14) 19. Nc3 {[%emt 0:05:28]} Ra6 {[%emt 0:03:24]} 20. Rfd1 {[%emt 0:01:34]} Qa8 {[%emt 0:03:25]} 21. Be3 {[%emt 0:02:37]} (21. g3 $14) 21... Qa7 $11 {[%emt 0:12:48]} 22. f4 {[%emt 0:04:23]} (22. Rc2 $11) 22... f6 {[%emt 0:01:31]} (22... Ra3 $17 23. Qb1 Na4 24. Nxa4 Qxa4) 23. Nd3 {[%emt 0:01:27]} Na4 {[%emt 0:05:58]} 24. Qe6 {[%emt 0:02:18]} Nxc3 {[%emt 0:03:04]} 25. Rxc3 {[%emt 0:00:01]} Nb5 $2 {[%emt 0:00:33]} (25... Ra3 $11 26. Rxa3 Qxa3) 26. Rc5 $1 $16 {[%emt 0:00:21] Threatens to win with f5.} Nd6 {[%emt 0:08:19]} (26... Rxa2 27. f5 (27. Qxe7 Qa4 $17) 27... g5) 27. Qxe7 {[%emt 0:01:21]} (27. f5 $142 {Intending fxg6+ and mate.} gxf5 28. Nf4 (28. exf5 Rxa2 29. Nf4 Rf7 $11) (28. Qxe7 b6 $14)) 27... b6 $18 {[%emt 0:04:25]} 28. Qxa7 {[%emt 0:00:40]} (28. Qxd6 bxc5 29. f5 gxf5 30. Nxc5 Rxa2 $15) 28... Rxa7 {[%emt 0:00:01]} 29. Rxc6 {[%emt 0:00:08]} Nxe4 {[%emt 0:00:05]} 30. Rxb6 {[%emt 0:01:59]} (30. d5 $16) 30... Rxa2 {[%emt 0:00:02]} 31. Nc5 $1 {[%emt 0:03:01]} Nc3 {[%emt 0:00:12]} (31... Re8 $14) 32. Rd3 $1 $16 {[%emt 0:00:30]} Nd5 {[%emt 0:03:08][%cal Bc3d5,Bd5e7,Be7f5,Bf5h4][%mdl 32]} 33. Rd6 {[%emt 0:00:21]} Ne7 {[%emt 0:00:45]} 34. Rd7 {[%emt 0:00:58]} Nf5 {[%emt 0:00:04] [#]} 35. Ne6 {[%emt 0:00:35]} (35. d5 $1 $16) 35... Rb8 $11 {[%emt 0:00:24]} 36. Rd2 {[%emt 0:00:48]} ({White should try} 36. Nxg7 $14 Nxg7 37. Rc3) 36... Ra1+ {[%emt 0:00:18]} 37. Kf2 {[%emt 0:00:07]} Rbb1 $1 {[%emt 0:00:22] aiming for ...Rf1+.} 38. Kf3 $1 $36 {[%emt 0:01:00][%mdl 2048] White is more active.} ({Not} 38. Nxg7 $2 Rf1+ 39. Ke2 Rae1+ 40. Kd3 Rxe3+ 41. Kc2 Nxg7 $19) 38... Nxh4+ $2 {[%emt 0:02:31][%mdl 8192] Black is on the road to losing.} (38... Rb3 $11 {and Black has nothing to worry.} 39. Rxg7+ (39. Re2 Kh6 $17) 39... Nxg7) 39. Ke4 $18 {[%emt 0:00:39]} Nf5 {[%emt 0:00:24]} 40. Nxg7 {[%emt 0:00:44]} Nxg7 {[%emt 0:00:01] [#]} 41. Rc2 $1 {[%emt 0:04:55] Strongly threatening Rcc7.} Ra8 {[%emt 0:06:19]} (41... f5+ $142 42. Kd3 Rd1+ 43. Bd2 Ra8) 42. Rcc7 {[%emt 0:01:44]} Re8+ {[%emt 0:00:06]} 43. Kf3 {[%emt 0:01:33]} Rg8 {[%emt 0:00:03]} (43... Rf1+ $2 44. Ke2 Ra1 45. Rxg7+ $18) 44. d5 {[%emt 0:04:58] Bd4 is the strong threat.} Rb3 {[%emt 0:00:05]} 45. Kf2 {[%emt 0:03:03] Hoping for Bd4.} Rb2+ {[%emt 0:07:30]} 46. Kg1 {[%emt 0:01:52]} Rb1+ {[%emt 0:01:20]} 47. Kh2 {[%emt 0:00:09] And now Bd4 would win.} Rd1 {[%emt 0:00:17] Prevents Bd4.} 48. Bc5 {[%emt 0:05:31]} Kh8 {[%emt 0:04:58]} (48... g5 $142 49. Bf8 Kg6) 49. Rf7 {[%emt 0:05:18] Threatening mate with Bf8.} Rc1 {[%emt 0:02:47]} 50. d6 {[%emt 0:01:28] White threatens Bd4 and mate.} Rd1 {[%emt 0:05:06] Prevents Bd4.} 51. d7 {[%emt 0:02:20]} (51. f5 $142 Kh7 52. Rxf6 gxf5 53. Be3) 51... Rd8 {[%emt 0:02:01]} 52. Be7 {[%emt 0:00:44]} R8xd7 {[%emt 0:04:25]} 53. Bxf6 {[%emt 0:00:11]} Rxf7 {[%emt 0:01:16]} 54. Rxf7 {[%emt 0:00:06] White is clearly winning.} Rd6 {[%emt 0:00:24]} 55. Bxg7+ {[%emt 0:01:48]} Kg8 {[%emt 0:00:01]} 56. Be5 {[%emt 0:00:38] Weighted Error Value: White=0.21 (precise) /Black=0.48} 1-0